Cogmind - Beta 14 @@@ ROGUE MODE // 2025.03.08 @ 14:41:59 Player: w0rldd3str0y3r Result: Destroyed by Y-45 Defender with Beam Rifle Performance ------------- Evolutions (2) 1000 Regions Visited (5) 1000 Robots Destroyed (55) 275 Value Destroyed (1571) 1571 Prototype IDs (5) 100 Alien Tech Used (0) 0 Bonus (83) 83 TOTAL SCORE: 4029 Bonus ------- High Alert Combat Kills 223 Friendly Fire -140 Cogmind --------- Core Integrity 0/550 Matter 300/300 Energy 80/100 System Corruption 0% Temperature Cool (9) Movement Core (800) Ox15 Location -8/Materials Parts ------- > --- POWER (1) -------- (None) > --- PROPULSION (4) --- (None) > --- UTILITY (4) ------ High-capacity Storage Unit Target Analyzer Hacking Suite > --- WEAPON (2) ------- Pulse Rifle Axe > --- INVENTORY (20) --- Aerolev Unit Faulty Aerolev Unit Aerolev Unit Aerolev Unit Faulty Aerolev Unit Aerolev Unit Gravmag System Gravmag System Cryofiber Web Improved Heat Sink Improved Heat Sink High-capacity Matter Pod (200) Advanced Weight Redist. System Terrain Scan Processor Improved Light Armor Plating Pulse Rifle High-powered Shotgun Peak State ------------ > --- POWER ------------ Micro Nuclear Core > --- PROPULSION ------- Light Treads Light Treads Light Treads Light Treads > --- UTILITY ---------- Improved Heat Sink High-capacity Storage Unit Target Analyzer Hacking Suite > --- WEAPON ----------- Pulse Rifle Makeshift Hammer > --- INVENTORY -------- Ion Engine Compact Wheel Aerolev Unit Aerolev Unit Aerolev Unit Aerolev Unit Aerolev Unit Aerolev Unit Gravmag System Gravmag System Improved Heat Sink Improved Heat Sink High-capacity Matter Pod Advanced Weight Redist. System Terrain Scan Processor ECM Suite Pulse Rifle Pulse Rifle [Rating: 30] Favorites ----------- Power Micro Nuclear Core Engine Ion Engine Power Core Micro Nuclear Core Propulsion Light Treads Treads Light Treads Wheel Compact Wheel Utility High-capacity Storage Unit Device Terrain Scanner Storage High-capacity Storage Unit Processor Target Analyzer Hackware Hacking Suite Protection Improved Light Armor Plating Weapon Light Cannon Energy Gun Pulse Rifle Ballistic Gun Light Assault Rifle Ballistic Cannon Light Cannon Launcher Rocket Launcher Impact Weapon Makeshift Hammer Slashing Weapon Axe Build | -11 -10 -10 -10 -9 -8 ------- Run | Yrd Mat Min Exi Min Mat Slots Evolved 4 | . . . . . 4 Power . | . . . . . . Propulsion 2 | . . . . . 2 Utility 2 | . . . . . 2 Weapon . | . . . . . . Parts Attached 58 | 6 9 3 8 8 24 Power 4 | 1 . . 1 . 2 Engine 2 | 1 . . . . 1 Core 2 | . . . 1 . 1 Reactor . | . . . . . . Propulsion 20 | 2 4 1 4 2 7 Treads 15 | 1 3 1 4 1 5 Leg . | . . . . . . Wheel 5 | 1 1 . . 1 2 Hover . | . . . . . . Flight . | . . . . . . Utility 11 | 1 1 . 2 . 7 Device 4 | . 1 . . . 3 Storage 2 | 1 . . 1 . . Processor 1 | . . . . . 1 Hackware 1 | . . . 1 . . Protection 3 | . . . . . 3 Artifact . | . . . . . . Weapon 23 | 2 4 2 1 6 8 Energy Gun 7 | 1 3 . . . 3 Energy Cannon . | . . . . . . Ballistic Gun 3 | 1 1 1 . . . Ballistic Cannon 6 | . . 1 . 3 2 Launcher 5 | . . . . 3 2 Special Weapon . | . . . . . . Impact Weapon 1 | . . . 1 . . Slashing Weapon 1 | . . . . . 1 Piercing Weapon . | . . . . . . Special Melee Weapon . | . . . . . . Unidentified Prototypes . | . . . . . . Parts Lost 19 | . . . . 1 18 Power 3 | . . . . . 3 Propulsion 10 | . . . . 1 9 Utility 3 | . . . . . 3 Weapon 3 | . . . . . 3 Highest Loss Streak 3 | . . . . 1 3 To Critical Strikes . | . . . . . . Average Slot Usage (%) 97 | . 94 100 99 98 93 Engine 5 | . 14 14 6 . 1 Core 6 | . . . 7 14 6 Treads 27 | . 21 28 28 26 28 Wheel 1 | . 6 . . . 2 Device 7 | . 13 14 9 . 4 Storage 12 | . 14 14 14 14 9 Processor 2 | . . . . . 9 Hackware 5 | . . . 4 14 9 Protection 1 | . . . . . 4 Energy Gun 5 | . 15 15 . . 9 Ballistic Gun 3 | . 7 9 4 . . Ballistic Cannon 8 | . . 3 14 11 2 Impact Weapon 6 | . . . 9 14 4 Peak Build Rating 30 | 6 8 8 18 19 30 Average Rating 15 | 4 6 7 12 17 25 On Entrance 9 | . 6 8 8 18 18 Naked Turns . | . . . . . . Heaviest Build 55 | 14 15 15 53 53 55 Greatest Support 80 | 20 40 40 40 40 80 Greatest Overweight (x) 15 | 1 1 . 1 3 15 Average Overweight (x) . | . . . . 1 . Largest Inventory Capacity 20 | 8 8 8 20 20 20 Average Capacity 14 | 6 8 8 13 20 20 Most Carried 20 | 6 8 8 17 19 20 Average Carried 12 | 2 7 7 11 17 17 Final Capacity 20 | 8 8 8 20 20 20 Final Carried 17 | 6 8 8 17 17 17 Class Distribution -------------------- 89% | Mutant 10% | Scavenger-Mutant Dominant Class ---------------- Mutant | -10/Materials Mutant | -10/Mines Mutant | -10/Exiles Mutant | -9/Mines Mutant | -8/Materials Resources | -11 -10 -10 -10 -9 -8 ----------- Run | Yrd Mat Min Exi Min Mat Matter Collected 1176 | 258 152 118 124 154 370 Remotely . | . . . . . . Salvage Created 1556 | . 152 105 181 237 881 Parts 93 | . 9 5 15 16 48 Haulers Intercepted 1 | . . . . . 1 Recyclers Shooed 2 | . . 1 . 1 . Parts Field Recycled . | . . . . . . Retrieved Matter . | . . . . . . Parts Self-Destructed . | . . . . . . Prevented . | . . . . . . Kills | -11 -10 -10 -10 -9 -8 ------- Run | Yrd Mat Min Exi Min Mat Combat Hostiles Destroyed 41 | . 5 2 . 9 25 Melee 3 | . . 1 . . 2 Guns 19 | . 5 1 . . 13 Cannons 3 | . . . . . 3 AOE 14 | . . . . 7 7 Classes Destroyed 12 | . 3 1 . 2 6 Worker 3 | . . . . 1 2 Builder 2 | . . . . . 2 Tunneler 2 | . . . . 1 1 Hauler 1 | . . . . . 1 Recycler 2 | . . 1 . . 1 Operator 2 | . 1 . . . 1 Watcher 1 | . . . . . 1 Swarmer 13 | . 3 . . 4 6 Grunt 24 | . 2 2 . 6 14 Duelist 1 | . . . . . 1 Sentry 2 | . . . . . 2 Hunter 2 | . . . . . 2 Best Kill Streak 9 | . 4 1 . 3 9 Combat Bots Only 5 | . 4 1 . 3 5 Max Kills in Single Turn 8 | . 1 1 . 2 8 Gunslinging . | . . . . . . Exploded 4 | . . . . 2 4 Melee 1 | . . 1 . . 1 Uniques/NPCs Destroyed . | . . . . . . Combat | -11 -10 -10 -10 -9 -8 -------- Run | Yrd Mat Min Exi Min Mat Hostile Shots Fired 298 | . 17 19 . 43 219 Missed 74 | . 3 6 . 10 55 Damage Taken 3204 | . 116 160 . 356 2572 Core 650 | . 14 10 . 71 555 Absorbed by Shields . | . . . . . . Core Remaining (%) 81 | 100 . . . 62 . Volleys Fired 172 | . 17 11 11 6 127 Largest 2 | . 2 2 1 1 2 Hottest 126 | . 70 100 20 33 126 Shots Fired 212 | . 20 19 12 6 155 Gun 158 | . 20 19 11 . 108 Cannon 46 | . . . 1 . 45 Launcher 8 | . . . . 6 2 Special . | . . . . . . Kinetic 63 | . 3 3 12 . 45 Thermal 141 | . 17 16 . . 108 Explosive 8 | . . . . 6 2 Electromagnetic . | . . . . . . Robot Hit Streak 17 | . 3 8 16 17 16 Robot Miss Streak 3 | . 1 2 . 2 3 Penetration Max . | . . . . . . Secondary Targets 2 | . . 1 . . 1 Max Gunslinging Chain 1 | . . 1 . . 1 Shots Hit Robots 171 | . 12 14 12 9 124 Core Hits 86 | . 9 6 7 10 54 Critical Kills . | . . . . . . Critical Parts Destroyed 2 | . . . . 2 . Critical Strikes 11 | . 2 1 . 2 6 Burn 7 | . 2 1 . . 4 Blast 2 | . . . . . 2 Smash 2 | . . . . 2 . Melee Attacks 27 | . . . . 13 14 Impact 24 | . . . . 13 11 Slashing 3 | . . . . . 3 Piercing . | . . . . . . Sneak Attacks 3 | . . . . 2 1 Combat Hostiles . | . . . . . . Follow-up Attacks . | . . . . . . Damage Inflicted 4299 | . 185 177 116 923 2898 Guns 1885 | . 164 158 98 . 1465 Cannons 591 | . . . 18 . 573 Explosions 1121 | . . . . 511 610 Melee 635 | . . . . 412 223 Ramming 67 | . 21 19 . . 27 Kinetic 735 | . 25 21 116 . 573 Thermal 1741 | . 139 137 . . 1465 Explosive 1121 | . . . . 511 610 Electromagnetic . | . . . . . . Impact 527 | . . . . 412 115 Slashing 108 | . . . . . 108 Piercing . | . . . . . . Highest Corruption 2 | . . 2 2 2 . Average Corruption 2 | . . 2 2 2 . Corruption Purged . | . . . . . . Corruption Blocked . | . . . . . . Effects 18 | . . . 16 2 . Message Errors 2 | . . . 1 1 . Matter Fused 5 | . . . 5 . . Heat Flow Errors 5 | . . . 5 . . Energy Discharges 1 | . . . 1 . . Parts Fused 1 | . . . 1 . . Data Loss (minor) 2 | . . . 1 1 . Data Loss (major) 1 | . . . 1 . . Misfires 1 | . . . 1 . . Overload Shots . | . . . . . . Overflow Damage 466 | . . . . 302 164 Projectiles 9 | . . . . . 9 Explosions 118 | . . . . 28 90 Melee 339 | . . . . 274 65 Knockbacks 18 | . . 1 . 1 16 Impact 3 | . . 1 . 1 1 Kinetic 15 | . . . . . 15 Secondary . | . . . . . . Self-Inflicted Damage 107 | . . 3 . 56 48 Shots 3 | . . . . 2 1 Rammed 21 | . 10 6 . . 5 Targets Rammed 23 | . 10 7 . . 6 Kicked . | . . . . . . Crushed 2 | . . 1 . . 1 Highest Temperature 387 | . 66 387 269 . 295 Average Temperature 96 | . 18 205 100 . 90 Received Heat Transfer 1431 | . 12 87 . 54 1278 Effects 4 | . . 2 . . 2 Energy Bleed 1 | . . 1 . . . Interference 3 | . . 1 . . 2 Siege Activations . | . . . . . . Robots Corrupted 3 | . . . . 2 1 Combat Hostiles 2 | . . . . 2 . Parts Fried 6 | . . . . 4 2 Impact Corruptions 9 | . . . . 6 3 Robots Melted . | . . . . . . Combat Hostiles . | . . . . . . Parts Melted 10 | . 3 . . . 7 Heat Transferred 4514 | . 555 481 . . 3478 Parts Sabotaged . | . . . . . . Parts Stolen . | . . . . . . Parts Stripped . | . . . . . . Power Chain Reactions . | . . . . . . Alert | -11 -10 -10 -10 -9 -8 ------- Run | Yrd Mat Min Exi Min Mat Peak Influence 791 | . 190 138 . 282 791 Initial 109 | . . 73 . . 109 Average 308 | . 81 128 . 158 522 Maximum Alert Level 3 | . . . . 1 3 Low Security (%) 48 | 100 100 100 . 65 4 Level 1 20 | . . . . 34 29 Level 2 23 | . . . . . 50 Level 3 7 | . . . . . 16 Level 4 . | . . . . . . Level 5 . | . . . . . . High Security . | . . . . . . Max Security . | . . . . . . Squads Dispatched 9 | . 2 . . . 7 Investigation 1 | . 1 . . . . Extermination . | . . . . . . Reinforcement 5 | . 1 . . . 4 Assault . | . . . . . . Garrison 3 | . . . . . 3 Intercept . | . . . . . . Searches Triggered . | . . . . . . Construction Impeded 3 | . . . . . 3 Haulers Reinforced . | . . . . . . Active Scanning Responses . | . . . . . . Cargo Convoy Interrupts . | . . . . . . Stealth | -11 -10 -10 -10 -9 -8 --------- Run | Yrd Mat Min Exi Min Mat Distress Signals 1 | . . . . . 1 Communications Jammed . | . . . . . . Distress Signals . | . . . . . . Times Spotted 66 | . 9 2 . 9 46 Peak Tracking Total 6 | . 3 2 . 4 6 Tactical Retreats 14 | . 2 . . . 12 Traps | -11 -10 -10 -10 -9 -8 ------- Run | Yrd Mat Min Exi Min Mat Traps Triggered 4 | . 3 . . . 1 Indirectly . | . . . . . . Trap Hack Attempts . | . . . . . . Triggered . | . . . . . . Disarmed 4 | . . . . . 4 Reprogrammed . | . . . . . . Reused . | . . . . . . Traps Extracted . | . . . . . . Installed . | . . . . . . Triggered 1 | . . 1 . . . Machines | -11 -10 -10 -10 -9 -8 ---------- Run | Yrd Mat Min Exi Min Mat Machines Disabled 9 | . . . . 2 7 Max in Single Turn 2 | . . . . 1 2 Machines Repaired . | . . . . . . Machines Dismantled . | . . . . . . Machines Sabotaged . | . . . . . . Overloaded Fab Kills . | . . . . . . Hacking | -11 -10 -10 -10 -9 -8 --------- Run | Yrd Mat Min Exi Min Mat Machines Accessed 5 | . 2 . 1 . 2 Terminals 3 | . 1 . . . 2 Fabricators . | . . . . . . Repair Stations . | . . . . . . Recycling Units 1 | . 1 . . . . Scanalyzers . | . . . . . . Garrison Access . | . . . . . . Total Hacks 19 | . 4 . 4 . 11 Successful 12 | . 2 . 4 . 6 Failed 7 | . 2 . . . 5 Catastrophic 2 | . 1 . . . 1 Database Lockouts . | . . . . . . Manual 3 | . . . . . 3 Terminals 14 | . 3 . . . 11 Fabricators . | . . . . . . Repair Stations . | . . . . . . Recycling Units 1 | . 1 . . . . Scanalyzers . | . . . . . . Garrison Access . | . . . . . . Terminal Hacks 11 | . 1 . 4 . 6 Record 4 | . . . 4 . . Prototype ID Bank 2 | . 1 . . . 1 Level Access Points 1 | . . . . . 1 Branch Access Points 1 | . . . . . 1 Disarm Traps 1 | . . . . . 1 Recall Investigation 1 | . . . . . 1 Zone Layout 1 | . . . . . 1 Fabricator Hacks . | . . . . . . Repair Station Hacks . | . . . . . . Recycling Unit Hacks 1 | . 1 . . . . Report Inventory 1 | . 1 . . . . Scanalyzer . | . . . . . . Garrison Access Hacks . | . . . . . . Unauthorized Hacks . | . . . . . . Terminals . | . . . . . . Fabricators . | . . . . . . Repair Stations . | . . . . . . Recycling Units . | . . . . . . Scanalyzers . | . . . . . . Garrison Access . | . . . . . . Data Cores Recovered . | . . . . . . Used . | . . . . . . Hacking Detections 3 | . 1 . . . 2 Full Trace Events 2 | . 1 . . . 1 Feedback Events . | . . . . . . Feedback Blocked . | . . . . . . Robot Schematics Acquired . | . . . . . . Robots Built . | . . . . . . Authchips . | . . . . . . Time . | . . . . . . Total Robot Build Rating . | . . . . . . Part Schematics Acquired . | . . . . . . Parts Built . | . . . . . . Authchips . | . . . . . . Time . | . . . . . . Total Part Build Rating . | . . . . . . Parts Repaired . | . . . . . . Time . | . . . . . . Parts Recycled . | . . . . . . Recycled Matter . | . . . . . . Retrieved Matter . | . . . . . . Retrieved Components . | . . . . . . Parts Scanalyzed . | . . . . . . Part Schematics Acquired . | . . . . . . Parts Damaged . | . . . . . . Bothacking | -11 -10 -10 -10 -9 -8 ------------ Run | Yrd Mat Min Exi Min Mat Used RIF Installer . | . . . . . . Robots Hacked . | . . . . . . Non-combat . | . . . . . . Combat . | . . . . . . Robot Hacks Applied . | . . . . . . Relay Couplers Released . | . . . . . . Fabnet Peak Effective % . | . . . . . . Robots Rewired 2 | . . . 2 . . Allies Hacked . | . . . . . . Hacks Repelled . | . . . . . . Allies | -11 -10 -10 -10 -9 -8 -------- Run | Yrd Mat Min Exi Min Mat Total Allies 2 | . . . 2 . . Largest Group 2 | . . . 2 1 . Highest-Rated Group 16 | . . . 16 8 . Highest-Rated Ally 8 | . . . 8 8 . Total Orders . | . . . . . . Ally Attacks 3 | . . . . 3 . Total Damage 33 | . . . . 33 . Kills . | . . . . . . Allies Corrupted . | . . . . . . Allies Melted . | . . . . . . Intel | -11 -10 -10 -10 -9 -8 ------- Run | Yrd Mat Min Exi Min Mat Robot Analysis Total . | . . . . . . Derelict Logs Recovered 3 | . . 2 . 1 . Drone Launches . | . . . . . . Drone Recoveries . | . . . . . . Exploration | -11 -10 -10 -10 -9 -8 ------------- Run | Yrd Mat Min Exi Min Mat Turns Passed 3560 | 60 304 282 1639 369 906 Spaces Moved 1603 | 46 178 144 820 134 281 Core 10 | 8 . . . . 2 Treads 1410 | 2 70 144 820 129 245 Legs . | . . . . . . Wheels 183 | 36 108 . . 5 34 Hover . | . . . . . . Flight . | . . . . . . Fastest Speed 50 | 50 95 160 160 145 135 Average Speed 178 | 99 123 160 191 236 166 Slowest Speed 800 | 160 160 160 240 240 800 Overloaded Moves . | . . . . . . Propulsion Burnouts . | . . . . . . Robots Hopped . | . . . . . . Cave-ins Triggered . | . . . . . . Exploration Rate (%) 38 | 5 33 37 93 39 24 Regions Visited 5 Branch Regions 3 Pre-discovered Areas 1 | . . 1 . . . Known Exits Taken . | . . . . . . Unknown Exits Taken 5 | 1 1 1 1 1 . Scrap Searched 3 | . . 2 . 1 . Spaces Dug 28 | . . . . . 28 Terrain Destroyed 102 | . . . . 65 37 Melee 9 | . . . . . 9 Projectile . | . . . . . . AOE 93 | . . . . 65 28 Terrain Rammed 1 | . . 1 . . . Walls Destroyed . | . . . . . . Machines Disabled . | . . . . . . Actions | -11 -10 -10 -10 -9 -8 --------- Run | Yrd Mat Min Exi Min Mat Total 2057 | 57 233 175 879 166 547 Wait 92 | . 14 . 1 4 73 Move 1598 | 45 177 143 819 133 281 Hop . | . . . . . . Pick Up 43 | 6 4 4 10 1 18 Fast Attach 16 | 6 5 1 2 . 2 Attach 19 | . 1 1 . 2 15 Detach 2 | . . . . 1 1 Swap 23 | . 3 1 6 6 7 Drop 17 | . 2 6 6 . 3 Fire 172 | . 17 11 11 6 127 Melee 27 | . . . . 13 14 Ram 1 | . . 1 . . . Kick . | . . . . . . Crush 23 | . 10 7 . . 6 Escape Stasis . | . . . . . . Rewire 24 | . . . 24 . . Trap . | . . . . . . Miscellaneous . | . . . . . . Route ------- -11/Scrapyard -10/Materials -10/Mines (discovered 2 exits: [*Mat] / *Exi) -10/Exiles (discovered 2 exits: [*Min x2]) -9/Mines -8/Materials (discovered 5 exits: Fac x3 / Sto x2) History --------- Turn | Location | Event 7 | -11/Scrapyard | Discovered new exit (range 16) 61 | -11/Scrapyard | Entered Materials 290 | -10/Materials | Discovered new exit (range 15) 302 | -10/Materials | Build established: Mutant 365 | -10/Materials | Entered Mines 407 | -10/Mines | Learned Materials stockpile data 412 | -10/Mines | Discovered new exit (range 5) 471 | -10/Mines | Met a Derelict bent on vengeance 531 | -10/Mines | Learned location of Zion (-6) 562 | -10/Mines | Received a Rocket Launcher from a helpful Derelict 639 | -10/Mines | Deemed a non-threat by the Exiles lab entrance 641 | -10/Mines | Discovered new exit (range 5) 647 | -10/Mines | Entered Exiles 647 | -10/Exiles | Found Exiles lab destroyed 1976 | -10/Exiles | Discovered new exit (range 10) 2255 | -10/Exiles | Discovered new exit (range 15) 2286 | -10/Exiles | Entered Mines 2286 | -9/Mines | Accompanied by 2 allies 2366 | -9/Mines | Learned Materials stockpile data 2619 | -9/Mines | Discovered new exit (range 8) 2655 | -9/Mines | Entered Materials 2655 | -8/Materials | Evolved 4 slots: Propulsion x2, Utility x2 2713 | -8/Materials | Identified exit to Storage 2713 | -8/Materials | Identified exit to Factory 2817 | -8/Materials | Garrison activated, responded to threat 2980 | -8/Materials | Lost 3 parts (1n1u1w) 3234 | -8/Materials | Build established: Scavenger-Mutant 3379 | -8/Materials | Core integrity fell below 50% 3529 | -8/Materials | Lost 3 parts (1p1n1w) 3550 | -8/Materials | Core integrity fell below 20% 3561 | -8/Materials | Destroyed by Y-45 Defender with Beam Rifle Last Messages --------------- 03518_ G-47 Trooper suffers critical hit (Burn). 03519_ R-06 Scavenger collects Aluminum Leg. 03522_ R-06 Scavenger collects Lgt. Nuclear Core. 03525_ G-47 Trooper heat damages Aluminum Leg, Aluminum Leg, Imp. Heat Sink. 03527_ Acquired 20 matter. 03528_ Critical hit (Burn: +37). 03530_ Acquired Lgt. Nuclear Core. 03531_ Imp. Light Armor Plating destroyed. 03531_ Critical hit (Burn: +37). 03532_ Destroyed Imp. Heat Sink. 03533_ R-06 Scavenger collects Aluminum Leg. 03534_ G-47 Trooper overheating. 03534_ Lgt. Nuclear Core destroyed. 03535_ G-47 Trooper overheating. 03540_ Arm. Wheel destroyed. 03543_ G-47 Trooper heat damages Aluminum Leg. 03543_ Critical hit (Burn: +37). 03551_ Destroyed Heat Sink. 03557_ Y-45 Defender destroyed. Map ----- +----------------------------------------------------+ | ???????????????????# ?????????????????????????? | | ???????????????????# ?????????????????????????? | | ???????????????????# #????????????????????????? | | ???????????????????# #????????????????????????? | | ???????????????????# #????????????????????????? | | ???????????????????# #????????????????????????? | | ???????????????????# #????????????????????????? | | ???????????????????# #???????????????????????## | | ???????????????????# #???????????????????????# | | ???????????????????+ #???????????????????????# | | ???????????????????# #???????????????????????# | | ???????????????????# #???????????????????????## | | ???????############# ########???????????????### | | ?????? ###########?????# | | ?????? +?????# | | ?????? % ^ ####?????# | | ???????? ###+########+##### ## ####### | | ?????????????????# # ^ ^ #% # | | ???????